bitfinex/quotes_ETHUSD_20230117
["timestamp","ask_amount","ask_price","bid_price","bid_amount"]
[1673984847082,25.39673259,1590.3,1590.2,0.10685518]
[1673984847291,28.21288228,1590.3,1590.2,0.10685518]
[1673984847497,25.39673259,1590.3,1590.2,0.10685518]
[1673984849348,28.21288228,1590.3,1590.2,0.10685518]
[1673984862883,28.68224056,1590.3,1590.2,0.08668925]
[1673984863213,28.68224056,1590.3,1590.2,0.04124657]
[1673984863214,32.73069307,1590.3,1590.2,0.04124657]
[1673984863578,36.23069307,1590.3,1590.2,0.04124657]
[1673984864001,36.83231813,1590.3,1590.2,0.04124657]
[1673984864270,33.33231813,1590.3,1590.2,0.04124657]
[1673984864582,29.47015765,1590.3,1590.2,0.04124657]
[1673984864772,32.75597212,1590.3,1590.2,0.04124657]
[1673984865491,29.47015765,1590.3,1590.2,0.04124657]
[1673984868777,32.75597212,1590.3,1590.2,0.04124657]
[1673984872451,32.75597212,1590.3,1590.2,0.01964601]
[1673984872841,1.0,1590.2,1590.1,0.08946767]
[1673984873051,7.96402128,1590.2,1590.1,0.08946767]
[1673984873274,26.89555128,1590.2,1590.1,0.08946767]
[1673984874011,25.89555128,1590.2,1590.1,0.08946767]
[1673984874785,28.71106134,1590.2,1590.1,0.08946767]
[1673984874995,28.23926134,1590.2,1590.1,0.08946767]
[1673984875361,21.95075134,1590.2,1590.1,0.08946767]
[1673984875992,21.95075134,1590.2,1590.1,2.36246767]
[1673984875993,8.34431005,1590.2,1590.1,2.36246767]
[1673984876211,5.52879999,1590.2,1590.1,2.36246767]
[1673984876623,5.52879999,1590.2,1590.1,1.27846767]
[1673984878728,24.86366413,1590.2,1590.1,0.08946767]
[1673984881726,12.28664413,1590.2,1590.1,1.27946767]
[1673984882035,9.47113407,1590.2,1590.1,1.27946767]
[1673984882250,11.81812732,1590.2,1590.1,1.27946767]
[1673984883777,9.47113407,1590.2,1590.1,1.27946767]
[1673984885782,12.01760199,1590.2,1590.0,0.10689842]
[1673984885994,5.93213413,1590.1,1590.0,0.10689842]
[1673984886249,5.93213413,1590.1,1590.0,0.07988675]
[1673984886250,23.04935407,1590.1,1590.0,0.07988675]
[1673984886467,26.33516854,1590.1,1590.0,0.07988675]
[1673984886992,29.33516854,1590.1,1590.0,0.03583987]
[1673984887145,34.88758923,1590.1,1590.0,0.03583987]
[1673984894012,34.88758923,1590.1,1590.0,0.01617058]
[1673984894235,35.11758923,1590.1,1590.0,0.01617058]
[1673984895347,38.0743674,1590.1,1590.0,0.01617058]
[1673984896238,38.0743674,1590.1,1590.0,0.01215969]
[1673984900307,35.11758923,1590.1,1590.0,0.01215969]
[1673984900501,38.07442345,1590.1,1590.0,0.01215969]
[1673984900964,38.07442345,1590.1,1590.0,0.00546539]
[1673984901357,36.59833162,1590.1,1590.0,0.00546539]
[1673984901708,33.08680898,1590.1,1590.0,0.00546539]
[1673984901925,35.89714808,1590.1,1590.0,0.00546539]
[1673984903035,32.94031386,1590.1,1590.0,0.00546539]
[1673984906126,32.94031386,1590.1,1590.0,0.00346539]
[1673984908211,27.85969317,1590.1,1590.0,0.00346539]
[1673984908570,24.39158555,1590.1,1590.0,1.42546539]
[1673984909181,18.10267555,1590.1,1590.0,1.42546539]
[1673984910822,6.46236518,1590.1,1590.0,9.13176539]
[1673984911083,4.58823507,1590.1,1590.0,2.90846539]
[1673984911252,4.52223507,1590.1,1590.0,4.39120893]
[1673984911724,5.45925603,1590.1,1590.0,5.39120893]
[1673984911932,5.52525603,1590.1,1590.0,4.45720893]
[1673984912159,5.52525603,1590.1,1590.0,4.39120893]
[1673984912311,4.58823507,1590.1,1590.0,10.68050893]
[1673984912506,4.52223507,1590.1,1590.0,4.45720893]
[1673984912716,4.52223507,1590.1,1590.0,4.39120893]
[1673984913659,1.405611,1590.1,1590.0,10.68050893]
[1673984913866,1.405611,1590.1,1590.0,4.45720893]
[1673984914098,1.405611,1590.1,1590.0,4.39120893]
[1673984914952,1.405611,1590.1,1590.0,2.84246539]
[1673984915291,4.99075418,1590.1,1590.0,2.84246539]
[1673984915505,7.33298566,1590.1,1590.0,2.84246539]
[1673984915656,7.39898566,1590.1,1590.0,2.84246539]
[1673984915867,13.68789566,1590.1,1590.0,2.84246539]
[1673984916636,27.01813912,1590.1,1590.0,2.84246539]
[1673984916850,27.01813912,1590.1,1589.9,0.77906645]
[1673984916851,24.67590764,1590.1,1589.9,0.77906645]
[1673984917062,5.45942806,1590.0,1589.9,0.84506645]
[1673984917255,11.81472806,1590.0,1589.9,0.84506645]
[1673984917478,14.06042522,1590.0,1589.9,0.84506645]
[1673984917859,20.34972522,1590.0,1589.9,0.84506645]
[1673984919184,26.63902522,1590.0,1589.9,0.066]
[1673984919336,27.10656033,1590.0,1589.9,0.066]
[1673984919903,24.29622123,1590.0,1589.9,0.066]
[1673984920335,20.35097747,1590.0,1589.9,0.066]
[1673984920552,11.81598031,1590.0,1589.9,0.066]
[1673984921448,11.8162686,1590.0,1589.9,0.066]
[1673984923061,5.52808935,1590.0,1589.9,1.488]
[1673984923245,5.05899508,1590.0,1589.9,1.488]
[1673984924223,5.52808935,1590.0,1589.9,1.488]
[1673984927262,26.88272428,1590.0,1589.9,0.066]
[1673984927430,27.3475981,1590.0,1589.8,1.40456692]
[1673984927650,5.46122499,1589.9,1589.8,1.422]
[1673984928011,24.39632499,1589.9,1589.8,1.422]
[1673984928172,27.36566489,1589.9,1589.8,1.422]
[1673984928712,14.78626489,1589.9,1589.8,1.422]
[1673984928935,11.81692499,1589.9,1589.8,1.422]
[1673984929849,24.86206317,1589.9,1589.8,1.422]
[1673984930537,24.86206317,1589.9,1589.7,1.53412311]
[1673984930706,1.8752957,1589.8,1589.7,7.82458311]
[1673984931054,3.28181475,1589.8,1589.7,9.31258311]
[1673984931218,1.40651905,1589.8,1589.7,9.31258311]
[1673984936676,3.28181475,1589.8,1589.7,9.31258311]
[1673984937988,1.40651905,1589.8,1589.7,9.31258311]
[1673984939138,1.40651905,1589.8,1589.7,11.50198042]
[1673984939732,1.40651905,1589.8,1589.7,17.79247042]
[1673984939987,0.93839862,1589.8,1589.7,17.79247042]
[1673984940541,1.00439862,1589.9,1589.7,25.50015846]
[1673984940724,0.93839862,1589.9,1589.8,24.24428585]
[1673984940932,0.93839862,1589.9,1589.8,24.31028585]
[1673984942611,2.34491767,1589.9,1589.8,18.02019585]
[1673984942824,1.40651905,1589.9,1589.8,15.47018]
[1673984944419,2.34537766,1589.9,1589.8,15.47018]
[1673984944628,0.93885861,1589.9,1589.8,15.47018]
[1673984944801,2.34537766,1589.9,1589.8,15.47018]
[1673984945995,0.93885861,1589.9,1589.8,21.76027]
[1673984946187,0.93885861,1589.9,1589.8,24.93788685]
[1673984946593,2.34537766,1589.9,1589.8,24.93788685]
[1673984946807,0.93885861,1589.9,1589.8,24.93788685]
[1673984947734,2.34537766,1590.0,1589.8,24.93788685]
[1673984947949,0.93885861,1590.0,1589.9,2.843]
[1673984948202,2.34537766,1590.0,1589.9,22.94977068]
[1673984948416,0.93885861,1590.0,1589.9,23.01577068]
[1673984949204,2.34537766,1590.0,1589.9,23.01577068]
[1673984949900,1.40651905,1590.0,1589.9,23.01577068]
[1673984950049,2.34528624,1590.0,1589.9,23.01577068]
[1673984950411,2.3452459,1590.0,1589.9,23.01577068]
[1673984951218,2.3452459,1590.0,1589.9,21.7781]
[1673984951430,2.34537602,1590.0,1589.9,21.7781]
[1673984952418,1.40651905,1590.0,1589.9,21.7781]
[1673984953034,2.34539088,1590.0,1589.9,21.7781]
[1673984953203,0.93887183,1590.0,1589.9,21.7781]
[1673984953421,0.93887183,1590.0,1589.9,24.585919]
[1673984953847,0.93887183,1590.0,1589.9,24.58795716]
[1673984956464,0.93887183,1590.0,1589.9,24.59795716]
[1673984957859,2.34539088,1590.1,1590.0,1.413]
[1673984958095,2.34539088,1590.1,1590.0,23.1199]
[1673984958307,1.40651905,1590.1,1590.0,26.41544572]
[1673984960267,1.8752957,1590.1,1590.0,2.896]
[1673984960509,5.46066547,1590.1,1590.0,2.82767628]
[1673984960817,7.40364913,1590.1,1590.0,2.82767628]
[1673984961191,5.52666547,1590.1,1590.0,1.417]
[1673984961450,5.52666547,1590.1,1590.0,1.422]
[1673984961626,6.98922493,1590.1,1590.0,1.422]
[1673984962571,8.86664953,1590.1,1590.0,1.422]
[1673984962783,6.98922493,1590.1,1590.0,1.422]
[1673984963640,5.52666547,1590.1,1590.0,1.422]
[1673984964520,3.18262407,1590.1,1590.0,1.422]
[1673984964670,5.46353312,1590.1,1590.0,1.422]
[1673984964876,2.41290905,1590.1,1590.0,1.422]
[1673984965091,2.81870905,1590.1,1590.0,7.7113]
[1673984965345,2.81870905,1590.1,1590.0,9.1993]
[1673984965682,2.34929421,1590.1,1590.0,23.95677]
[1673984965992,3.28564801,1590.1,1590.0,23.95677]
[1673984966562,1.87749421,1590.1,1590.0,23.95677]
[1673984966798,3.28563743,1590.1,1590.0,23.95677]
[1673984967105,1.87749421,1590.1,1590.0,23.95677]
[1673984967935,1.87749421,1590.1,1590.0,21.7779]
[1673984969139,1.87749421,1590.1,1590.0,15.4886]
[1673984969819,4.22440326,1590.1,1590.0,14.0666]
[1673984971874,1.87749421,1590.1,1590.0,14.0666]
[1673984973728,1.87749421,1590.1,1590.0,14.0766]
[1673984975362,4.22440326,1590.1,1590.0,14.0766]
[1673984975517,3.28682439,1590.1,1590.0,14.0766]
[1673984975726,3.28882439,1590.1,1590.0,14.0746]
[1673984975935,3.28682439,1590.1,1590.0,14.0766]
[1673984976141,1.87749421,1590.1,1590.0,14.0766]
[1673984977268,4.22440326,1590.1,1590.0,14.0766]
[1673984977783,2.34690905,1590.1,1590.0,14.0766]
[1673984979828,2.34690905,1590.1,1590.0,23.031436]
[1673984980042,2.34690905,1590.1,1590.0,24.453436]
[1673984980043,1.8818202,1590.1,1590.0,24.453436]
[1673984981133,1.8818202,1590.1,1590.0,24.44974735]
[1673984982173,4.22872925,1590.1,1590.0,24.44974735]
[1673984982385,4.22872925,1590.1,1590.0,21.78421135]
[1673984982997,4.22821214,1590.1,1590.0,21.78421135]
[1673984983346,2.34690905,1590.1,1590.0,21.78421135]
[1673984983926,1.88158988,1590.1,1590.0,21.78421135]
[1673984984710,1.88158988,1590.1,1590.0,20.36221135]
[1673984985498,4.22849893,1590.1,1590.0,20.36221135]
[1673984986554,3.29317486,1590.1,1590.0,23.02737049]
[1673984986765,1.41158498,1590.1,1590.0,23.02737049]
[1673984987009,3.29317486,1590.1,1590.0,23.02737049]
[1673984987722,1.41158498,1590.1,1590.0,23.02737049]
[1673984988128,3.29317486,1590.1,1590.0,23.02737049]
[1673984988336,1.41158498,1590.1,1590.0,23.02737049]
[1673984990674,3.29317486,1590.1,1590.0,23.02737049]
[1673984991234,1.41158498,1590.1,1590.0,23.02737049]
[1673984991621,3.29317486,1590.1,1590.0,23.02737049]
[1673984991830,1.88158988,1590.1,1590.0,23.02737049]
[1673984992058,2.22901293,1590.1,1590.0,23.02737049]
[1673984992883,3.64056683,1590.1,1590.0,23.02737049]
[1673984993103,1.75897695,1590.1,1590.0,23.02737049]
[1673984993632,1.74897695,1590.1,1590.0,23.01737049]
[1673984994453,3.63056683,1590.1,1590.0,23.01737049]
[1673984994983,1.74897695,1590.1,1590.0,23.01737049]
[1673984995819,3.63056683,1590.1,1590.0,23.01737049]
[1673984996025,1.74897695,1590.1,1590.0,23.01737049]
[1673984996903,3.63056683,1590.1,1590.0,23.01737049]
[1673984997321,2.21901293,1590.1,1590.0,20.35221135]
[1673984997804,2.22101293,1590.1,1590.0,20.35021135]
[1673984997987,2.21901293,1590.1,1590.0,20.35221135]
[1673984998374,1.74883322,1590.1,1590.0,20.35221135]
[1673984999107,1.27860706,1590.1,1590.0,20.35221135]
[1673984999314,1.27860706,1590.1,1590.0,23.01637049]
[1673985002001,2.69001723,1590.1,1590.0,23.01637049]
[1673985002366,1.27860706,1590.1,1590.0,23.01637049]
[1673985003024,1.2751345,1590.1,1590.0,23.01637049]
[1673985004208,2.68654467,1590.1,1590.0,23.01637049]
[1673985005195,1.2751345,1590.1,1590.0,23.01637049]
[1673985005919,1.2751345,1590.1,1590.0,23.03980894]
[1673985006497,2.41859418,1590.3,1590.1,1.94118401]
[1673985006711,0.94118401,1590.3,1590.2,21.58608389]
[1673985006855,2.35259418,1590.4,1590.2,21.65208389]
[1673985007065,0.94118401,1590.3,1590.2,20.23308389]
[1673985007323,0.94118401,1590.3,1590.2,21.65208389]
[1673985010395,0.94118401,1590.4,1590.3,21.27636]
[1673985010606,0.94118401,1590.4,1590.3,24.67810239]
[1673985013013,2.35259418,1590.5,1590.3,24.67810239]
[1673985013222,2.35259418,1590.5,1590.4,1.422]
[1673985013392,0.94118401,1590.5,1590.4,20.30747948]
[1673985013610,0.94118401,1590.5,1590.4,23.47321367]
[1673985014400,1.00718401,1590.6,1590.4,23.47321367]
[1673985014548,0.94118401,1590.6,1590.5,1.422]
[1673985014764,0.94118401,1590.6,1590.5,20.28399]
[1673985015008,0.94118401,1590.6,1590.5,20.34999]
[1673985015294,0.94118401,1590.6,1590.5,23.32596637]
[1673985016718,1.41141017,1590.6,1590.5,24.26496637]
[1673985017327,1.41141017,1590.6,1590.5,13.82466]
[1673985017328,1.88158988,1590.6,1590.5,13.82466]
[1673985017701,3.28945562,1590.6,1590.5,20.11199]
[1673985018765,1.40786574,1590.6,1590.5,20.11199]
[1673985019212,3.28945562,1590.6,1590.5,20.11199]
[1673985019436,0.93866931,1590.6,1590.5,20.11199]
[1673985020275,2.34653505,1590.6,1590.5,20.11199]
[1673985022223,1.40786574,1590.6,1590.5,20.11199]
[1673985022428,0.93782726,1590.6,1590.5,22.89002413]
[1673985023275,0.93782726,1590.6,1590.5,20.13118613]
[1673985025521,2.43130412,1590.7,1590.5,20.13118613]
[1673985025757,1.49347686,1590.7,1590.6,20.04679]
[1673985025954,2.43139207,1590.7,1590.6,20.11279]
[1673985026164,2.4314697,1590.7,1590.6,20.11279]
[1673985026363,1.49347686,1590.7,1590.6,20.11279]
[1673985026763,2.43147259,1590.7,1590.6,20.11279]
[1673985027456,1.49347686,1590.7,1590.6,20.11279]
[1673985028713,3.37506674,1590.7,1590.6,20.11279]
[1673985030123,1.49347686,1590.7,1590.6,20.10997949]
[1673985030797,2.43126345,1590.7,1590.6,20.10997949]
[1673985031615,2.43124193,1590.7,1590.6,20.10997949]
[1673985032067,2.43124193,1590.7,1590.6,22.75163005]
[1673985032927,1.02337619,1590.7,1590.6,22.75163005]
[1673985035855,1.02337619,1590.7,1590.6,24.17063005]
[1673985036153,1.02337619,1590.7,1590.6,23.94063005]
[1673985041543,2.43124193,1590.7,1590.6,23.94063005]
[1673985041755,2.43124193,1590.7,1590.6,21.29897949]
[1673985043245,1.02337619,1590.7,1590.6,21.29897949]
[1673985046037,2.43124193,1590.7,1590.6,21.29897949]
[1673985046492,1.49347686,1590.7,1590.6,21.29897949]
[1673985049222,3.37506674,1590.7,1590.6,21.29897949]
[1673985049642,1.967201,1590.7,1590.6,21.29897949]
[1673985052480,4.76085141,1590.7,1590.6,21.29897949]
[1673985052648,3.64897655,1590.7,1590.6,0.066]
[1673985052862,3.64897655,1590.7,1590.5,13.76166]
[1673985052863,3.64897655,1590.7,1590.5,20.11499]
[1673985053090,4.22948178,1590.6,1590.5,20.11499]
[1673985053539,4.22948178,1590.6,1590.5,20.11106566]
[1673985053712,5.07108761,1590.6,1590.5,20.11106566]
[1673985053930,5.13708761,1590.6,1590.5,20.11106566]
[1673985054475,3.25731793,1590.6,1590.5,20.11106566]
[1673985054660,3.19131793,1590.6,1590.5,20.11106566]
[1673985055496,5.07117559,1590.6,1590.5,20.11106566]
[1673985055732,3.25731793,1590.6,1590.5,20.11106566]
[1673985055923,3.19131793,1590.6,1590.5,20.11106566]
[1673985056138,5.07122191,1590.6,1590.5,20.11106566]
[1673985056330,3.25731793,1590.6,1590.5,20.11106566]
[1673985056539,3.19131793,1590.6,1590.5,20.11106566]
[1673985058885,3.19131793,1590.6,1590.5,18.92406566]
[1673985059328,0.84160583,1590.6,1590.5,18.92406566]
[1673985059507,3.19157591,1590.6,1590.5,18.92406566]
[1673985062151,3.18931043,1590.6,1590.5,18.92406566]
[1673985062501,6.76630352,1590.6,1590.5,0.066]
[1673985062651,7.30400352,1590.6,1590.3,12.64182]
[1673985062864,1.87969866,1590.4,1590.3,12.64182]
[1673985063282,4.22932199,1590.4,1590.3,12.64182]
[1673985064072,2.34962333,1590.4,1590.3,12.64182]
[1673985064384,3.34962333,1590.4,1590.3,0.066]
[1673985064602,2.34962333,1590.4,1590.2,7.53724]
[1673985064818,3.28698436,1590.3,1590.2,7.53724]
[1673985065619,3.28698436,1590.3,1590.2,1.249]
[1673985065809,1.88027678,1590.3,1590.1,19.87126401]
[1673985066021,2.34755512,1590.2,1590.1,19.87326401]
[1673985066281,1.40853307,1590.2,1590.1,19.87326401]
[1673985066454,0.93899573,1590.2,1590.1,19.87326401]
[1673985066999,6.83261448,1590.2,1590.1,1.00718401]
[1673985067219,20.88852474,1590.2,1590.1,0.94118401]
[1673985067394,21.88705882,1590.2,1590.1,0.94118401]
[1673985067605,14.59854882,1590.2,1590.1,0.94118401]
[1673985068023,20.88705882,1590.2,1590.1,0.94118401]
[1673985070592,24.82414044,1590.2,1590.1,0.94118401]
[1673985070805,27.17376377,1590.2,1590.1,0.94118401]
[1673985071010,24.82414044,1590.2,1590.1,0.94118401]
[1673985071333,27.17376377,1590.2,1590.1,0.94118401]
[1673985071641,24.82414044,1590.2,1590.1,0.94118401]
[1673985071960,27.17376377,1590.2,1590.1,0.94118401]
[1673985072110,28.31613463,1590.2,1590.1,0.94118401]
[1673985072320,34.15591997,1590.2,1590.1,0.94118401]
[1673985073117,30.65591997,1590.2,1590.1,0.94118401]
[1673985073476,30.88591997,1590.2,1590.1,0.94118401]
[1673985074852,34.38591997,1590.2,1590.1,0.94118401]
[1673985075067,31.46937033,1590.2,1590.1,0.94118401]
[1673985075504,33.80658499,1590.2,1590.1,0.94118401]
[1673985075723,30.30658499,1590.2,1590.1,0.94118401]
[1673985076265,33.80658499,1590.2,1590.1,0.94118401]
[1673985076575,36.61692409,1590.2,1590.1,0.94118401]
[1673985076904,30.30658499,1590.2,1590.1,0.94118401]
[1673985077735,32.64285905,1590.2,1590.1,0.94118401]
[1673985077945,30.9977284,1590.2,1590.1,0.94118401]
[1673985078336,32.39961654,1590.2,1590.1,0.94118401]
[1673985079506,30.53047313,1590.2,1590.1,0.94118401]
[1673985080566,32.39961654,1590.2,1590.1,0.94118401]
[1673985081398,30.53047313,1590.2,1590.1,0.94118401]
[1673985081586,32.39961654,1590.2,1590.1,0.94118401]
[1673985083266,30.30047313,1590.2,1590.1,0.94118401]
[1673985083473,28.39730185,1590.2,1590.1,0.94118401]
[1673985083959,27.96812129,1590.2,1590.1,0.94118401]
[1673985084109,21.67961129,1590.2,1590.1,0.94118401]
[1673985084327,27.03349257,1590.2,1590.1,0.94118401]
[1673985085001,27.03349257,1590.2,1590.1,0.93784489]
[1673985087462,28.90263598,1590.2,1590.1,0.93784489]
[1673985087674,31.07109857,1590.2,1590.1,0.93784489]
[1673985088631,32.94024198,1590.2,1590.1,0.93784489]
[1673985089615,31.53835384,1590.2,1590.1,0.93784489]
[1673985090639,33.8746279,1590.2,1590.1,0.93784489]
[1673985090879,34.3464279,1590.2,1590.1,0.93784489]
[1673985091617,32.47728449,1590.2,1590.1,0.93784489]
[1673985093719,32.01390893,1590.2,1590.1,0.93784489]
[1673985095713,34.35018299,1590.2,1590.1,0.93784489]
[1673985095926,17.26375699,1590.2,1590.1,0.93784489]
[1673985096138,11.92748293,1590.2,1590.1,0.93784489]
[1673985097233,13.33345305,1590.2,1590.1,0.93784489]
[1673985097443,11.92748293,1590.2,1590.1,0.93784489]
[1673985098431,14.26375699,1590.2,1590.1,0.93784489]
[1673985098765,11.92748293,1590.2,1590.1,0.93784489]
[1673985099145,5.63897293,1590.2,1590.1,0.93784489]
[1673985099507,6.10234849,1590.2,1590.1,0.93784489]
[1673985100840,3.76607443,1590.2,1590.1,0.93784489]
[1673985101049,3.70007443,1590.2,1590.1,0.93784489]
[1673985101268,9.98858443,1590.2,1590.1,0.93784489]
[1673985101481,12.40172312,1590.2,1590.1,0.93784489]
[1673985102960,6.11321312,1590.2,1590.1,0.93784489]
[1673985103572,28.50569375,1590.2,1590.1,0.93784489]
[1673985104695,28.50569375,1590.2,1589.8,9.52766755]
[1673985104901,3.28749251,1589.9,1589.8,9.52766755]
[1673985105237,3.28749251,1589.9,1589.8,1.35056755]
[1673985105427,3.28749251,1589.9,1589.8,1.28456755]
[1673985105638,1.40892536,1589.9,1589.8,1.28456755]
[1673985105897,3.28749251,1589.9,1589.8,1.28456755]
[1673985106071,6.40411658,1589.9,1589.8,1.28456755]
[1673985106280,6.47011658,1589.9,1589.8,1.28456755]
[1673985106523,5.06119122,1589.9,1589.8,1.28456755]
[1673985107112,7.40940015,1589.9,1589.8,1.28456755]
[1673985107325,15.07942341,1589.9,1589.8,0.10556755]
[1673985108628,13.20085626,1589.9,1589.8,0.10556755]
[1673985108803,19.49055626,1589.9,1589.8,0.10556755]
[1673985109442,19.49055626,1589.9,1589.8,0.1018999]
[1673985110261,21.3694122,1589.9,1589.8,0.1018999]
[1673985110893,21.36948655,1589.9,1589.8,0.1018999]
[1673985111105,19.49055626,1589.9,1589.8,0.1018999]
[1673985112378,26.24238643,1589.9,1589.8,0.1018999]
[1673985113732,26.24238643,1589.9,1589.8,0.08177982]
[1673985118496,23.43204733,1589.9,1589.8,0.08177982]
[1673985122357,26.71428643,1589.9,1589.8,0.08177982]
[1673985123707,26.71428643,1589.9,1589.8,0.06566127]
[1673985123918,26.24238643,1589.9,1589.8,0.06566127]
[1673985125201,23.43204733,1589.9,1589.8,0.06566127]
[1673985129524,26.24238643,1589.9,1589.8,0.06566127]
[1673985131441,25.08404733,1589.9,1589.8,0.06566127]
[1673985131905,31.8417618,1589.9,1589.8,0.03164138]
[1673985132113,3.18417618,1589.8,1589.7,0.11212311]
[1673985132365,15.70810261,1589.8,1589.7,0.11212311]
[1673985132683,31.36197025,1589.8,1589.7,0.11212311]
[1673985133015,34.64437261,1589.8,1589.7,0.11212311]
[1673985133399,31.36197025,1589.8,1589.7,0.11212311]
[1673985133796,38.03027025,1589.8,1589.7,0.09011337]
[1673985134218,39.84319134,1589.8,1589.7,0.09011337]
[1673985135899,39.37129134,1589.8,1589.7,0.09011337]
[1673985136230,37.03027025,1589.8,1589.7,0.09011337]
[1673985136739,39.98755719,1589.8,1589.7,0.09011337]
[1673985137263,42.80000202,1589.8,1589.7,0.09011337]
[1673985137707,42.79999396,1589.8,1589.7,0.09011337]
[1673985137953,43.26995955,1589.8,1589.7,0.09011337]
[1673985138873,43.26995955,1589.8,1589.7,0.04347191]
[1673985139483,43.90670128,1589.8,1589.7,0.04347191]
[1673985140974,43.26995955,1589.8,1589.7,0.04347191]
[1673985141795,40.31267261,1589.8,1589.7,0.04347191]
[1673985142020,43.27003106,1589.8,1589.7,0.04347191]
[1673985143261,43.90677279,1589.8,1589.7,0.04347191]
[1673985143688,40.15247043,1589.8,1589.7,0.034989]
[1673985144761,42.96498684,1589.8,1589.7,0.034989]
[1673985144993,43.43487279,1589.8,1589.7,0.034989]
[1673985145357,43.90677279,1589.8,1589.7,0.034989]
[1673985145820,43.90677279,1589.8,1589.7,0.01689888]
[1673985146570,40.62437043,1589.8,1589.7,0.01689888]
[1673985147087,37.66701198,1589.8,1589.7,0.01689888]
[1673985147301,43.90439818,1589.8,1589.7,0.01689888]
[1673985147683,44.12436149,1589.8,1589.7,0.00089888]
[1673985147880,1.0,1589.7,1589.4,0.11194929]
[1673985148094,21.81933171,1589.5,1589.4,0.11194929]
[1673985148333,47.25917171,1589.5,1589.4,0.11194929]
[1673985148541,47.96117171,1589.5,1589.4,0.11194929]
[1673985148751,44.45608928,1589.5,1589.4,0.11194929]
[1673985148988,52.91298928,1589.5,1589.4,0.11194929]
[1673985149173,59.43529557,1589.5,1589.4,0.11194929]
[1673985149389,56.15558793,1589.5,1589.4,0.11194929]
[1673985150012,62.93529557,1589.5,1589.4,0.11194929]
[1673985150415,62.9333073,1589.5,1589.4,0.11194929]
[1673985151465,53.9333073,1589.5,1589.4,0.11194929]
[1673985151670,10.17333073,1589.4,1589.2,0.12651876]
[1673985151933,11.57718587,1589.3,1589.2,0.12651876]
[1673985152164,36.81146587,1589.3,1589.2,0.12651876]
[1673985152547,12.752,1589.2,1589.0,0.13073666]
[1673985152783,12.752,1589.2,1589.0,0.00073666]
[1673985152784,23.16289916,1589.1,1589.0,0.00073666]
[1673985152971,21.80589916,1589.1,1588.9,0.12135451]
[1673985153187,5.45615197,1589.0,1588.9,0.12135451]
[1673985153393,20.20845136,1589.0,1588.9,0.12135451]
[1673985153610,5.52004469,1589.0,1588.9,1.20535451]
[1673985153801,4.11763749,1589.0,1588.9,1.54435451]
[1673985154005,4.05163749,1589.0,1588.9,1.80698996]
[1673985154253,4.05163749,1589.0,1588.9,1.54435451]
[1673985154254,5.45407244,1589.0,1588.9,1.54435451]
[1673985154424,10.87831902,1589.0,1588.9,0.12135451]
[1673985154634,17.17157902,1589.0,1588.9,0.12135451]
[1673985155270,16.70381333,1589.0,1588.9,0.12135451]
[1673985156137,16.70381333,1589.0,1588.9,0.11648351]
[1673985156792,4.11729333,1589.0,1588.9,0.11648351]
[1673985156981,3.11662407,1589.0,1588.9,0.11648351]
[1673985157530,7.29368926,1589.1,1588.9,2.77433186]
[1673985157531,0.066,1589.1,1588.9,2.77433186]
[1673985157841,3.11662407,1589.1,1589.0,1.411]
[1673985158967,0.066,1589.2,1589.0,1.411]
[1673985159299,0.066,1589.2,1589.1,1.416]
[1673985159300,3.11662407,1589.2,1589.1,1.416]
[1673985159466,4.05129333,1589.2,1589.1,1.416]
[1673985160155,0.066,1589.3,1589.1,2.9786]
[1673985160376,0.93466926,1589.4,1589.2,2.846]
[1673985160560,4.05129333,1589.4,1589.3,1.41]
[1673985161089,0.93466926,1589.4,1589.3,1.41]
[1673985161264,0.93466926,1589.4,1589.3,2.180244]
[1673985161716,2.33710421,1589.5,1589.3,8.472314]
[1673985161925,5.45372828,1589.5,1589.4,1.422]
[1673985162136,5.51972828,1589.5,1589.4,1.422]
[1673985162730,4.11729333,1589.5,1589.4,1.422]
[1673985162943,4.05129333,1589.5,1589.4,1.422]
[1673985164106,4.05129333,1589.5,1589.4,2.845]
[1673985166674,3.11662407,1589.5,1589.4,2.845]
[1673985169824,4.51905902,1589.5,1589.4,1.423]
[1673985170194,10.81033902,1589.5,1589.4,1.423]
[1673985170400,10.87633902,1589.5,1589.4,1.423]
[1673985170652,12.74611841,1589.5,1589.4,1.423]
[1673985171366,11.34368346,1589.5,1589.4,1.423]
[1673985172235,14.0174406,1589.5,1589.4,1.423]
[1673985175760,20.3087206,1589.5,1589.4,1.423]
[1673985176397,22.6482485,1589.5,1589.4,1.423]
[1673985177157,20.77846911,1589.5,1589.3,1.422]
[1673985177368,20.77846911,1589.5,1589.1,11.9357]
[1673985177369,6.29207,1589.3,1589.1,11.9357]
[1673985177596,4.0535754,1589.2,1589.1,1.489]
[1673985177758,4.0535754,1589.2,1589.1,1.423]
[1673985179140,5.45900239,1589.2,1589.1,1.423]
[1673985179348,5.52500239,1589.2,1589.1,1.423]
[1673985180155,7.52332589,1589.2,1589.1,1.423]
[1673985180384,1.17055889,1589.1,1589.0,1.411]
[1673985180618,5.22430828,1589.1,1589.0,1.411]
[1673985180856,4.35318296,1589.1,1589.0,1.411]
[1673985181040,0.00255889,1589.1,1589.0,13.99752]
[1673985181253,0.00255889,1589.1,1589.0,22.28507335]
[1673985181575,0.00255889,1589.1,1589.0,23.70407335]
[1673985185668,0.00255889,1589.1,1589.0,4.82429335]
[1673985185990,0.00255889,1589.1,1589.0,21.70978]
[1673985186198,0.00255889,1589.1,1589.0,21.77578]
[1673985188699,0.00255889,1589.1,1589.0,20.35678]
[1673985189294,1.17055889,1589.1,1589.0,20.35678]
[1673985189507,1.17055889,1589.1,1589.0,7.77026]
[1673985189718,1.17055889,1589.1,1589.0,14.06352]
[1673985190093,0.00255889,1589.1,1589.0,14.06352]
[1673985190402,0.00255889,1589.1,1589.0,20.35678]
[1673985192931,1.17055889,1589.1,1589.0,20.35678]
[1673985193089,1.17055889,1589.1,1589.0,14.06352]
[1673985193614,0.00255889,1589.1,1589.0,20.35678]
[1673985194291,0.00255889,1589.1,1589.0,23.03343735]
[1673985196500,0.00255889,1589.1,1589.0,24.59466183]
[1673985196662,0.93712532,1589.3,1589.1,1.42319661]
[1673985196864,0.93712532,1589.3,1589.2,20.29341]
[1673985197080,2.81455231,1589.4,1589.2,20.35941]
[1673985197341,0.93712532,1589.3,1589.2,20.35941]
[1673985197549,0.93712532,1589.3,1589.2,23.16694366]
[1673985198754,2.34255231,1589.3,1589.2,23.16694366]
[1673985198970,1.40542699,1589.3,1589.2,23.16694366]
[1673985199657,3.27932964,1589.3,1589.2,23.16694366]
[1673985199972,1.40542699,1589.3,1589.2,20.35941]
[1673985200656,3.27932964,1589.3,1589.2,14.06694]
[1673985200901,6.39595371,1589.3,1589.2,0.066]
[1673985201110,6.46195371,1589.3,1589.1,20.36738661]